[Event "37th ECCC 2022"]
[Site "Mayrhofen"]
[Date "2022.10.05"]
[Round "3.15"]
[White "Michalik, Peter"]
[Black "Moussard, Jules"]
[Result "1-0"]
[ECO "A40"]
[WhiteElo "2558"]
[BlackElo "2686"]
[Annotator "TA"]
[PlyCount "137"]
[EventDate "2022.10.03"]
[EventType "team-tourn"]
[EventCountry "AUT"]
[SourceTitle "playchess.com"]
[Source "ChessBase"]
[SourceQuality "1"]
[TimeControl "40/5400+30:1800+30"]

{[%evp 19,137,0,0,0,0,0,0,0,0,0,0,0,14,17,17,17,17,14,14,10,10,18,14,10,24,23,25,25,25,35,61,10,17,7,7,9,14,7,23,25,52,65,73,73,170,79,106,79,408,406,365,115,604,429,627,777,622,701,675,627,703,526,504,344,320,281,6011,3012,12837,12838,12837,12838,12838,12832,12832,12833,12833,12834,12835,12829,12830,12828,12831,12831,12831,12832,5281,0,12622,6721,12824,714,12833,12833,12843,12843,12844,12817,12845,12845,12845,5908,3081,3503,4786,4004,12835,12835,12835,12835,12833,6291,12838,12833,12842,12842,12845,12845,12846,12843]} 1. d4 {[%emt 0:00:03]} Nf6 {[%emt 0:00:07]} 2. c4 {[%emt 0:00:05]} e6 {[%emt 0:00:04]} 3. g3 {[%emt 0:00:05]} d5 {[%emt 0:00:26]} 4. Nf3 {[%emt 0:00:26]} Bb4+ {[%emt 0:00:29]} 5. Bd2 {[%emt 0:00:08]} Be7 {[%emt 0:00:09]} 6. Bg2 {[%emt 0:00:42]} O-O {[%emt 0:00:08]} 7. Qc2 {[%emt 0:00:04]} c6 {[%emt 0:01:56]} 8. O-O {[%emt 0:00:10]} Nbd7 {[%emt 0:00:30]} 9. Bf4 {[%emt 0:00:46]} b6 {[%emt 0:05:42]} 10. cxd5 {[%emt 0:01:02] Recently 10.Nbd2 got a lot of attention.} cxd5 {[%emt 0:01:36]} 11. Rc1 {[%emt 0:00:30] E08: Closed Catalan: Main Line: 7 Qc2.} Bb7 {[%emt 0:06:44]} 12. Nc3 {[%emt 0:06:04]} Rc8 {[%emt 0:09:56]} 13. Qd1 {[%emt 0:01:22] The position is equal.} a6 {[%emt 0:05:38] Against Nb5} 14. a4 {[%emt 0:02:06] [#]} Nh5 $146 {[%emt 0:09:44]} ({Predecessor:} 14... Rc4 15. Na2 Qa8 16. b3 Rcc8 17. Rxc8 Rxc8 18. Rc1 Ba3 19. Rc2 h6 {½-½ (18) Werner,A (2125)-Klingelhoefer,S (2230) Germany 2011}) 15. Bd2 {[%emt 0:01:45]} Bd6 {[%emt 0:04:58]} 16. e4 {[%emt 0:05:51]} dxe4 {[%emt 0:02:08]} 17. Ng5 {[%emt 0:01:10]} Nhf6 {[%emt 0:02:02]} 18. Ngxe4 {[%emt 0:02:11]} Nxe4 {[%emt 0:00:57]} 19. Bxe4 {[%emt 0:01:35]} Bxe4 {[%emt 0:04:55]} 20. Nxe4 {[%emt 0:01:34]} Be7 {[%emt 0:00:33]} 21. Be3 {[%emt 0:02:50]} Rxc1 {[%emt 0:12:56]} 22. Rxc1 {[%emt 0:00:07]} Nf6 {[%emt 0:00:45]} 23. Nxf6+ {[%emt 0:00:18]} Bxf6 {[%emt 0:00:02]} 24. Rc6 {[%emt 0:07:45]} h6 {[%emt 0:01:13]} 25. Qd3 {[%emt 0:02:25] White is more active.} (25. b3 $14) 25... b5 $11 {[%emt 0:00:26]} 26. Rxa6 {[%emt 0:03:20]} bxa4 {[%emt 0:00:05]} 27. Rxa4 {[%emt 0:01:24]} Qd5 {[%emt 0:01:43]} 28. Qc2 {[%emt 0:05:39]} Qb7 {[%emt 0:02:27]} 29. Rc4 {[%emt 0:03:06]} Rd8 {[%emt 0:00:04]} 30. h4 {[%emt 0:05:14]} h5 {[%emt 0:00:54]} 31. Rc7 {[%emt 0:01:50]} Qa8 {[%emt 0:08:12]} (31... Qb5 $16 {was worth a try.}) 32. Kh2 {[%emt 0:02:50]} (32. b4 $1 $18 {and White stays clearly on top.}) 32... g6 {[%emt 0:04:49]} 33. b4 {[%emt 0:03:17][%cal Bb2b4,Bb4b5][%mdl 32] Hoping for b5.} Rb8 {[%emt 0:04:31][%mdl 8192]} (33... Qd5 $16 {is more resistant.}) 34. b5 $18 {[%emt 0:08:46]} Bd8 {[%emt 0:01:23]} 35. Rc6 {[%emt 0:02:47]} (35. Rc5 $18 {is more deadly.}) 35... Qb7 $2 {[%emt 0:01:30][%mdl 8192]} (35... Rxb5 $16 36. Rxe6 (36. Rc8 Rb8 $14) 36... Kg7) 36. Qc4 {[%emt 0:07:40]} Bb6 {[%emt 0:01:23]} (36... Qxb5 $2 37. Qxb5 Rxb5 38. Rc8 $18) (36... g5 $142 37. d5 (37. Bxg5 Bxg5 38. hxg5 Qxb5 $14) 37... Qxb5 38. Qxb5 (38. dxe6 Qxc4 39. Rxc4 gxh4 $14) 38... Rxb5) 37. Bf4 {[%emt 0:01:27][%cal Be3f4,Bf4e5,Be5f6][%mdl 32]} Rd8 {[%emt 0:01:18]} 38. Be5 {[%emt 0:00:55][%cal Od4d5]} Kh7 {[%emt 0:00:27]} 39. Bf6 {[%emt 0:06:36]} Ra8 {[%emt 0:01:38]} 40. Qc1 {[%emt 0:08:29]} Bd8 {[%emt 0:05:03]} 41. Qf4 {[%emt 0:33:23] Bxd8 is the strong threat.} Bxf6 {[%emt 0:02:24]} 42. Qxf6 {[%emt 0:00:00][%cal Od4d5][%mdl 4096] Endgame Black must now prevent d5! KQR-KQR} Kg8 $2 {[%emt 0:01:42]} (42... Rf8 43. Qe5 Ra8) 43. d5 {[%emt 0:00:00]} exd5 {[%emt 0:03:21]} 44. b6 {[%emt 0:00:00] White threatens Rc7 and mate.} Rf8 {[%emt 0:04:06]} 45. Rc7 {[%emt 0:00:00]} Qa6 {[%emt 0:00:08]} 46. Qd4 {[%emt 0:00:00]} Qa5 {[%emt 0:01:14]} 47. Rd7 {[%emt 0:00:00]} Qb5 {[%emt 0:04:48]} 48. Rxd5 {[%emt 0:00:00]} Qc6 {[%emt 0:00:01]} 49. Rd6 {[%emt 0:00:00]} Qf3 {[%emt 0:00:13]} 50. Rd7 {[%emt 0:00:00]} Kh7 {[%emt 0:00:39]} 51. b7 {[%emt 0:00:00]} Re8 {[%emt 0:00:16]} 52. Qa7 {[%emt 0:00:00]} Kg7 {[%emt 0:03:52]} 53. Qd4+ {[%emt 0:00:00]} (53. Rc7 $142 Re2 54. Rxf7+ $3 {[%mdl 512]} Qxf7 55. b8=Q Rxf2+ 56. Kh3) 53... Kh7 $1 {[%emt 0:00:06] [#]} 54. Re7 $3 {[%emt 0:00:00][%mdl 512] White is clearly winning.} Rd8 {[%emt 0:00:05]} (54... Rb8 55. Qb2) 55. Qe3 {[%emt 0:00:00]} ({Not} 55. Qxd8 Qxf2+ 56. Kh3 Qf1+ 57. Kh2 Qf2+ 58. Kh3 Qf1+ 59. Kh2 Qf2+ $11) (55. Qb2 $142 Rb8 56. Rc7) 55... Qf6 {[%emt 0:02:34]} 56. Kg2 {[%emt 0:00:00]} Rb8 {[%emt 0:00:47]} 57. Rc7 {[%emt 0:00:00]} Kg7 {[%emt 0:00:21]} 58. Qf3 {[%emt 0:00:00]} Qe6 {[%emt 0:01:03]} 59. Qc3+ {[%emt 0:00:00]} Qf6 {[%emt 0:01:15] [#]} 60. Qxf6+ {[%emt 0:00:00]} (60. Rxf7+ $142 $3 {[%mdl 512]} Kxf7 61. Qc7+ Qe7 62. Qxb8) 60... Kxf6 {[%emt 0:00:03] KR-KR} 61. Kf3 {[%emt 0:00:00] aiming for Kf4.} Ke6 {[%emt 0:00:07]} 62. Kf4 {[%emt 0:00:00] And now Kg5 would win.} f6 {[%emt 0:00:07]} 63. Rc6+ {[%emt 0:00:00]} Kf7 {[%emt 0:00:52]} 64. Rb6 {[%emt 0:00:00]} Ke7 {[%emt 0:00:03]} 65. Ke4 {[%emt 0:00:00] Strongly threatening Kd5.} g5 {[%emt 0:00:04]} 66. Kf5 {[%emt 0:00:00]} gxh4 {[%emt 0:00:05]} 67. gxh4 {[%emt 0:00:00]} Kd8 {[%emt 0:00:18]} 68. Kxf6 {[%emt 0:00:07]} Kc7 {[%emt 0:00:05]} 69. Rb2 {[%emt 0:00:04] Weighted Error Value: White=0.63/Black=0.56} 1-0

[Event "37th ECCC 2022"]
[Site "Mayrhofen"]
[Date "2022.10.05"]
[Round "3.16"]
[White "Alekseenko, Kirill"]
[Black "Prohaszka, Peter"]
[Result "1/2-1/2"]
[ECO "B12"]
[WhiteElo "2691"]
[BlackElo "2570"]
[Annotator "TA"]
[PlyCount "107"]
[EventDate "2022.10.03"]
[EventType "team-tourn"]
[EventCountry "AUT"]
[SourceTitle "playchess.com"]
[Source "ChessBase"]
[SourceQuality "1"]
[TimeControl "40/5400+30:1800+30"]

{[%evp 9,107,12,14,18,0,9,11,13,15,11,10,0,0,0,24,0,0,0,0,0,28,0,0,0,0,0,0,16,39,38,55,53,46,46,102,54,154,139,168,151,169,131,131,95,102,93,230,197,209,68,102,60,52,39,87,88,90,88,97,91,100,81,91,28,20,29,28,27,68,40,57,0,6,0,97,97,97,97,97,97,450,415,435,0,0,0,0,0,0,0,8,8,8,0,0,0,0,0,0,0]} 1. e4 {[%emt 0:00:05]} c6 {[%emt 0:00:05]} 2. d4 {[%emt 0:00:17]} d5 {[%emt 0:00:05]} 3. e5 {[%emt 0:00:13]} Bf5 4. c4 {[%emt 0:00:34]} e6 {[%emt 0:00:52]} 5. Nc3 {[%emt 0:00:21]} Bb4 {[%emt 0:01:06]} 6. cxd5 {[%emt 0:00:38] B12: Caro-Kann: Advance Variation.} cxd5 {[%emt 0:01:53]} 7. h4 {[%emt 0:00:44] [#] Strongly threatening g4.} h6 {[%emt 0:01:03]} 8. g4 {[%emt 0:01:00]} Be4 {[%emt 0:01:43]} 9. f3 {[%emt 0:00:19]} Bh7 {[%emt 0:00:06] [#]} 10. a3 $146 {[%emt 0:04:51]} ({Predecessor:} 10. Bd3 Bxc3+ 11. bxc3 Bxd3 12. Qxd3 Nc6 13. Ne2 Nge7 14. Nf4 g6 15. Kf2 Qd7 16. a4 {½-½ (56) Guo,A (2422)-Liang,J (2408) New York 2021}) 10... Bxc3+ {[%emt 0:07:28]} 11. bxc3 {[%emt 0:00:52]} Nd7 {[%emt 0:00:50][%cal Bb8d7,Bd7b6,Bb6c4][%mdl 32]} 12. Ra2 {[%emt 0:06:56]} Ne7 {[%emt 0:04:37]} 13. Ne2 {[%emt 0:06:26]} Qc7 {[%emt 0:06:14]} 14. a4 {[%emt 0:07:15]} Nb6 {[%emt 0:10:25]} 15. a5 {[%emt 0:04:32]} Nc4 {[%emt 0:01:11]} 16. Nf4 {[%emt 0:16:01]} Nxa5 {[%emt 0:11:07]} 17. Bb5+ {[%emt 0:01:35]} Kf8 {[%emt 0:06:08]} 18. Qa4 {[%emt 0:12:24]} Nc4 {[%emt 0:06:54]} 19. Rhh2 {[%emt 0:12:31]} Kg8 {[%emt 0:17:20]} 20. Bxc4 {[%emt 0:00:12]} dxc4 {[%emt 0:00:15]} 21. Ba3 $1 {[%emt 0:00:40]} Bd3 {[%emt 0:03:32]} (21... Ng6 $14 22. Bd6 Qc8) 22. h5 {[%emt 0:05:05]} (22. Bd6 $16 Qd8 23. Qb4) 22... Nc6 {[%emt 0:04:41]} (22... Nc8 $14) 23. Bd6 $16 {[%emt 0:00:57]} Qd7 {[%emt 0:02:29]} 24. Nxd3 {[%emt 0:06:14]} cxd3 {[%emt 0:00:02]} 25. Qb5 {[%emt 0:00:43]} f6 {[%emt 0:03:38][%cal Oc6e5]} 26. Rab2 {[%emt 0:01:37]} (26. Qxd3 fxe5 27. Bc5 exd4 $17) 26... Rc8 {[%emt 0:05:20]} 27. f4 {[%emt 0:02:13]} (27. Qxd3 fxe5 28. Ba3 exd4 $15) 27... fxe5 {[%emt 0:01:34]} (27... a6 $16 28. Qxd3 (28. Qxb7 Qxb7 29. Rxb7 Nxd4 $14) 28... Na5) 28. dxe5 {[%emt 0:02:16]} b6 {[%emt 0:00:05]} 29. Kf2 {[%emt 0:03:16]} (29. Qxd3 $6 Nd8 $16) (29. Rh3 $18) 29... Qf7 {[%emt 0:02:36]} 30. Kg3 {[%emt 0:00:15]} Ne7 $1 {[%emt 0:00:21]} 31. c4 {[%emt 0:01:27] Prevents Nd5.} (31. Qxd3 $2 Nd5 32. Qe4 Rxc3+ 33. Kf2 Qxf4+ 34. Qxf4 Nxf4 $19) 31... Kh7 {[%emt 0:00:48]} (31... g6 $1 $14 {deserves consideration.}) 32. Qb3 {[%emt 0:01:09]} Rhd8 {[%emt 0:00:45]} 33. Qxd3+ {[%emt 0:00:07]} Kg8 {[%emt 0:00:31]} 34. Rhc2 {[%emt 0:00:38]} Rd7 {[%emt 0:00:23]} 35. Qe4 {[%emt 0:00:16]} Rcd8 {[%emt 0:00:10]} 36. Kg2 {[%emt 0:02:38]} (36. Rb3 $16) 36... Nc8 $11 {[%emt 0:00:15]} 37. c5 {[%emt 0:00:01]} bxc5 {[%emt 0:00:14]} 38. Bxc5 {[%emt 0:00:04]} Rd5 {[%emt 0:00:57]} 39. Be3 {[%emt 0:00:46]} Nb6 {[%emt 0:01:32]} 40. Rc6 {[%emt 0:01:36]} (40. Bxb6 axb6 41. Rc6 (41. Rxb6 Rd4 $15) 41... Rd4 $11) (40. Rb3 $14) 40... Rd1 {[%emt 0:00:32]} 41. Qg6 {[%emt 0:11:43]} Qb7 {[%emt 0:09:40]} (41... Qf8 $11) 42. Qxe6+ $16 {[%emt 0:05:26]} Kh8 {[%emt 0:00:06]} 43. Kh2 {[%emt 0:02:36] [#] aiming for g5.} (43. Bxb6 Rc1 44. Bf2 (44. Bxd8 Qxb2+ 45. Kg3 Rg1+ 46. Kf3 Rf1+ 47. Ke4 Re1+ 48. Kd5 Rd1+ 49. Kc5 Qd4+ 50. Kb5 Rb1+) 44... Qa8 $15) 43... Qa6 {[%emt 0:05:04] Threatens to win with ...Qa1.} 44. Rd6 {[%emt 0:02:05] Black must now prevent Rxd1.} (44. Bxb6 Qf1 45. Qxh6+ gxh6 46. Rxh6+ Kg7 47. Rg6+ Kh7 48. Kg3 axb6 49. Rc2 Qe1+ 50. Rf2 R1d3+ 51. Kh4 Qxf2+ 52. Kg5 Rg8 53. Rxg8 Kxg8 54. h6 Rd4 55. Kg6 Qxf4 56. e6 Qxg4+ 57. Kf6 Qh4+ 58. Kg6 Rg4+ 59. Kf5 Qg5#) 44... R8xd6 {[%emt 0:14:19][%mdl 8192]} (44... Qa1 $16 {is tougher.} 45. Rbd2 Rxd2+ 46. Bxd2 (46. Rxd2 Rxd2+ 47. Bxd2 Qd1 $11) 46... Rg8) 45. exd6 {[%emt 0:00:07]} Qd3 {[%emt 0:01:53]} 46. Ra2 $2 {[%emt 0:05:39]} (46. g5 $18 hxg5 47. Qe8+ (47. fxg5 Qxd6+ 48. Qxd6 Rxd6 $16) 47... Kh7 48. fxg5 Qxd6+ 49. Kg2 Qd5+ 50. Kf2) 46... Nc4 $11 {[%emt 0:01:35] The position is equal.} 47. Bxa7 {[%emt 0:04:40][%cal Oa7e3] Chess con chili.} Rd2+ {[%emt 0:00:30]} 48. Rxd2 {[%emt 0:00:07]} Qxd2+ {[%emt 0:00:03][%mdl 4096] Endgame KQB-KQN} 49. Kg3 {[%emt 0:01:01] White wants to mate with d7.} Qd3+ {[%emt 0:00:15]} 50. Kg2 {[%emt 0:01:22] White threatens Qe8+ and mate.} Nxd6 {[%emt 0:00:15]} 51. f5 {[%emt 0:00:40] Active counter play!} Ne4 {[%emt 0:01:12] And now ...Qd2+ would win.} 52. Qe8+ {[%emt 0:00:40]} Kh7 {[%emt 0:00:01] Hoping for ...Qe2+.} 53. Qg6+ {[%emt 0:00:12]} Kg8 {[%emt 0:00:36]} 54. Qe8+ {[%emt 0:00:26] Weighted Error Value: White=0.26 (precise) /Black=0.28 (precise)} 1/2-1/2

[Event "37th ECCC 2022"]
[Site "Mayrhofen"]
[Date "2022.10.05"]
[Round "3.17"]
[White "Korpa, Bence"]
[Black "Movsesian, Sergei"]
[Result "1/2-1/2"]
[ECO "A06"]
[WhiteElo "2496"]
[BlackElo "2619"]
[Annotator "TA"]
[PlyCount "37"]
[EventDate "2022.10.03"]
[EventType "team-tourn"]
[EventCountry "AUT"]
[SourceTitle "playchess.com"]
[Source "ChessBase"]
[SourceQuality "1"]
[TimeControl "40/5400+30:1800+30"]

{[%evp 9,37,11,15,16,29,13,18,25,10,8,6,7,2,2,10,0,0,0,0,0,0,0,41,0,0,0,36,0,0,0]} 1. Nf3 {[%emt 0:00:06]} d5 {[%emt 0:00:30]} 2. e3 {[%emt 0:00:12]} Nf6 {[%emt 0:01:12]} 3. c4 {[%emt 0:00:12]} e6 {[%emt 0:01:12]} 4. Nc3 {[%emt 0:00:40]} a6 {[%emt 0:00:24]} 5. b3 {[%emt 0:03:49]} c5 {[%emt 0:01:34]} 6. Bb2 {[%emt 0:03:21] A17: English Opening: 1...Nf6 with ...Bb4.} Nc6 {[%emt 0:06:06]} 7. cxd5 {[%emt 0:00:28]} exd5 {[%emt 0:00:31]} 8. d4 {[%emt 0:01:11]} Bg4 {[%emt 0:01:35]} 9. Be2 {[%emt 0:00:54]} Bxf3 {[%emt 0:00:42]} 10. Bxf3 {[%emt 0:00:09] With the idea dxc5.} cxd4 {[%emt 0:00:32]} 11. exd4 {[%emt 0:00:10]} Bb4 {[%emt 0:01:36]} 12. O-O {[%emt 0:00:19]} Bxc3 {[%emt 0:01:45]} 13. Bxc3 {[%emt 0:00:16]} O-O {[%emt 0:00:03]} 14. Qd3 {[%emt 0:00:32]} Qd6 {[%emt 0:02:06] [#]} 15. g3 $146 {[%emt 0:04:45]} ({Predecessor:} 15. a3 Rfe8 16. Rfe1 Rxe1+ 17. Bxe1 Re8 18. Bd2 Ne4 19. Be3 Na5 20. g3 Qb6 21. Bd1 {½-½ (34) Shchekachev,A (2515)-Dordzhieva,D (2311) Biel 2021}) 15... Nb4 {[%emt 0:05:07]} 16. Qd2 {[%emt 0:00:32]} (16. Bxb4 $5 Qxb4 17. Rac1 $11) 16... Nc6 {[%emt 0:00:03]} 17. Qd3 {[%emt 0:01:37]} Nb4 {[%emt 0:00:34]} 18. Qd2 {[%emt 0:00:11]} (18. Bxb4 $5 Qxb4 19. Rac1 $11) 18... Nc6 {[%emt 0:00:10]} 19. Qd3 {[%emt 0:00:14] A rather calm draw.  Weighted Error Value: White=0.11 (very precise) /Black=0.04 (flawless)} 1/2-1/2

[Event "37th ECCC 2022"]
[Site "Mayrhofen"]
[Date "2022.10.05"]
[Round "3.18"]
[White "Cornette, Matthieu"]
[Black "Kaczur, Florian"]
[Result "1-0"]
[ECO "C55"]
[WhiteElo "2572"]
[BlackElo "2483"]
[Annotator "TA"]
[PlyCount "75"]
[EventDate "2022.10.03"]
[EventType "team-tourn"]
[EventCountry "AUT"]
[SourceTitle "playchess.com"]
[Source "ChessBase"]
[SourceQuality "1"]
[TimeControl "40/5400+30:1800+30"]

{[%evp 12,75,39,28,35,27,34,38,33,31,24,18,16,18,45,38,49,45,40,39,52,44,64,71,127,141,159,144,153,161,185,213,212,198,226,245,293,224,847,322,545,489,460,453,710,552,545,545,535,534,870,872,868,880,875,879,819,809,29985,29986,29992,29993,29993,29991,29991,29992]} 1. e4 {[%emt 0:00:05]} e5 {[%emt 0:00:13]} 2. Nf3 {[%emt 0:00:09]} Nc6 {[%emt 0:00:33]} 3. Bc4 {[%emt 0:00:29]} Nf6 {[%emt 0:00:41]} 4. d3 {[%emt 0:00:04]} Be7 {[%emt 0:01:05]} 5. O-O {[%emt 0:00:28]} O-O {[%emt 0:01:05]} 6. Re1 {[%emt 0:00:52]} d6 {[%emt 0:01:21]} 7. a3 {[%emt 0:01:20]} h6 {[%emt 0:04:31] C55: Two Knights: 4 d3, 4 d4 exd4 5 e5 and Max Lange Attack.} 8. Nbd2 {[%emt 0:06:18]} Re8 {[%emt 0:02:14]} 9. c3 {[%emt 0:02:36][%cal Bc2c3,Bc3c4][%mdl 32]} Bf8 {[%emt 0:03:18] [#] White is slightly better.} 10. b4 $146 {[%emt 0:01:05]} ({Predecessor:} 10. Nf1 g6 11. h3 Be6 12. Bxe6 fxe6 13. d4 exd4 14. cxd4 Bg7 15. Ng3 Kh7 16. Qd3 e5 17. d5 Ne7 18. Bd2 a5 19. Rac1 {½-½ (19) Mrdja,M (2387)-Sciortino,M (2192) Montecatini Terme 2003}) 10... a6 {[%emt 0:05:27]} 11. Bb2 {[%emt 0:06:27]} b5 {[%emt 0:04:33]} 12. Ba2 {[%emt 0:07:13]} Be6 {[%emt 0:20:33]} 13. Bxe6 {[%emt 0:03:05]} Rxe6 {[%emt 0:00:17][%cal Be8e6,Be6g6,Bg6g4,Bg4c4][%mdl 32]} 14. c4 {[%emt 0:01:07]} Qd7 {[%emt 0:02:01]} 15. Rc1 {[%emt 0:03:12]} Rc8 {[%emt 0:10:40]} 16. Qc2 {[%emt 0:08:51]} Ne7 {[%emt 0:02:55]} 17. d4 {[%emt 0:03:31] Strongly threatening d5.} Nh5 {[%emt 0:06:05] Black is now going downhill.} (17... Ng6 $142) 18. dxe5 $16 {[%emt 0:07:18]} Rg6 {[%emt 0:01:50] And now ...Qh3 would win.} 19. Nh4 {[%emt 0:02:08]} Rg4 {[%emt 0:03:07]} 20. Ndf3 {[%emt 0:00:41]} g5 {[%emt 0:05:09] [#]} 21. Nf5 {[%emt 0:08:37]} Nxf5 {[%emt 0:00:29]} 22. exf5 {[%emt 0:00:26][%cal Be4f5,Bf5f6][%mdl 32]} Rxc4 {[%emt 0:03:26]} 23. e6 {[%emt 0:00:51]} Qc6 {[%emt 0:01:44]} 24. Qb1 {[%emt 0:07:35] Black must now prevent exf7+.} (24. exf7+ $6 Kxf7 25. Bc3 (25. Qe2 Nf4 $16) 25... Rxc3 26. Qxc3 Qxc3 27. Rxc3 c5 28. bxc5 dxc5 $18) 24... Nf4 $2 {[%emt 0:10:56]} (24... fxe6 25. fxe6 (25. Rxc4 bxc4 26. fxe6 Bg7 $18) 25... Bg7 26. Rxc4 (26. Qg6 Qe8 $16) 26... bxc4 27. Bxg7 (27. Qg6 Qe8 $14) 27... Nxg7) 25. e7 $2 {[%emt 0:04:49]} (25. exf7+ Kxf7 26. f6) 25... Bg7 $2 {[%emt 0:00:04]} (25... Re8 {keeps fighting.}) 26. Rxc4 {[%emt 0:02:01]} bxc4 {[%emt 0:00:15]} 27. f6 {[%emt 0:02:43]} Bh8 {[%emt 0:01:25]} (27... Qd7 $142 28. fxg7 Re8) 28. Qf5 {[%emt 0:01:38]} Re8 {[%emt 0:00:17]} 29. h4 {[%emt 0:02:26]} Qb5 {[%emt 0:01:41]} 30. Qg4 {[%emt 0:04:13][%cal Rh4g5]} ({Not} 30. Qxb5 axb5 31. hxg5 hxg5 $16) 30... Nd3 {[%emt 0:00:55]} 31. Nd4 {[%emt 0:01:16]} Qd5 {[%emt 0:01:16]} 32. Qd7 $1 {[%emt 0:03:57][%csl LRc7,LRe8]} Qa8 {[%emt 0:00:26] [#]} 33. Nf5 $1 {[%emt 0:00:43]} Kh7 {[%emt 0:01:05] [#]} 34. Nxh6 $1 {[%emt 0:01:43][%mdl 512]} Kxh6 {[%emt 0:02:32] [#]} (34... Qc8 35. Qxc8) 35. Qf5 $1 {[%emt 0:00:18] White mates.} Qc8 {[%emt 0:01:20]} (35... Rg8 36. Re4) 36. Qxg5+ {[%emt 0:01:14]} Kh7 {[%emt 0:00:02]} 37. Re3 {[%emt 0:00:11]} Nf4 {[%emt 0:01:26]} 38. Qxf4 {[%emt 0:00:19] Weighted Error Value: White=0.40/Black=0.48} 1-0